[Event "22nd Alekhine FIDE 2018"]
[Site "Voronezh"]
[Date "2018.06.13"]
[Round "2"]
[White "Khajrutdinov, Ildar"]
[Black "Pivina, Mariya"]
[Result "*"]
[ECO "D37"]
[WhiteElo "2106"]
[BlackElo "1941"]
[Annotator "ChessBase"]
[PlyCount "46"]
[EventDate "2018.??.??"]
[EventType "swiss"]
[EventCountry "RUS"]
[SourceTitle "playchess.com"]
[Source "ChessBase"]
[SourceQuality "1"]
[TimeControl "40/5400+30:1800+30"]

1. d4 {[%emt 0:00:00]} Nf6 {[%emt 0:00:07]} 2. Nf3 {[%emt 0:00:20]} e6 {[%emt 0:00:23]} 3. c4 {[%emt 0:00:12]} d5 {[%emt 0:01:27]} 4. Nc3 {[%emt 0:00:18]} Nbd7 {[%emt 0:02:40]} 5. cxd5 {[%emt 0:07:43]} exd5 {[%emt 0:00:12]} 6. Bg5 {[%emt 0:00:50]} Be7 {[%emt 0:01:02]} 7. e3 {[%emt 0:00:20]} c6 {[%emt 0:00:09]} 8. Bd3 {[%emt 0:00:28]} Nh5 {[%emt 0:03:13]} 9. Bxe7 {[%emt 0:02:52]} Qxe7 {[%emt 0:00:07]} 10. O-O {[%emt 0:01:05]} Ndf6 {[%emt 0:04:19]} 11. Ne5 {[%emt 0:04:22]} g6 {[%emt 0:01:22]} 12. Rb1 {[%emt 0:02:44]} O-O {[%emt 0:09:58]} 13. b4 {[%emt 0:03:05]} Ng7 {[%emt 0:01:50]} 14. Na4 {[%emt 0:12:00]} a6 {[%emt 0:16:54]} 15. Nc5 {[%emt 0:08:17]} Bf5 {[%emt 0:05:51]} 16. a4 Bxd3 17. Qxd3 {[%emt 0:06:54]} Ne6 {[%emt 0:06:40]} 18. Rfc1 {[%emt 0:02:35]} a5 {[%emt 0:07:29]} 19. Nxe6 {[%emt 0:09:00]} Qxe6 {[%emt 0:01:03]} 20. b5 {[%emt 0:02:02]} Rfc8 {[%emt 0:02:30]} 21. bxc6 {[%emt 0:02:23]} bxc6 {[%emt 0:00:05]} 22. Rb6 {[%emt 0:07:24]} Nd7 {[%emt 0:00:12]} 23. Nxd7 {[%emt 0:00:58]} Qxd7 {[%emt 0:00:05]} *

[Event "22nd Alekhine FIDE 2018"]
[Site "Voronezh"]
[Date "2018.06.13"]
[Round "2"]
[White "Popelyshev, Igor V."]
[Black "Krupin, Victor"]
[Result "*"]
[ECO "C14"]
[WhiteElo "2095"]
[BlackElo "1938"]
[Annotator "NA RC"]
[PlyCount "59"]
[EventDate "2018.??.??"]
[EventType "swiss"]
[EventCountry "RUS"]
[SourceTitle "playchess.com"]
[Source "ChessBase"]
[SourceQuality "1"]
[TimeControl "40/5400+30:1800+30"]

1. e4 {[%emt 0:00:00]} e6 {[%emt 0:00:17]} 2. d4 {[%emt 0:00:00]} d5 {[%emt 0:00:15]} 3. Nc3 {[%emt 0:00:00]} Nf6 {[%emt 0:00:21]} 4. Bg5 {[%emt 0:00:00]} Be7 {[%emt 0:00:20]} 5. e5 {[%emt 0:01:53]} Nfd7 {[%emt 0:00:21]} 6. Bxe7 {[%emt 0:01:09]} Qxe7 {[%emt 0:00:26]} 7. Nf3 {[%emt 0:03:24]} a6 {[%emt 0:00:26]} 8. Qd2 {[%emt 0:03:19]} c5 {[%emt 0:00:28] C14: Französische Verteidigung (Klassische Hauptvariante)} 9. Ne2 {[%emt 0:01:30]} (9. dxc5 Nc6 10. O-O-O Nxc5 11. Qe3 b5 12. Nd4 Nxd4 13. Rxd4 b4 14. Ne2 O-O 15. Ng3 f5 16. exf6 Qxf6 {½-½ (74) Yildiz,B (2282)-Shen,Y (2459) Shenzhen 2011}) 9... cxd4 {[%emt 0:01:44]} 10. Nexd4 {[%emt 0:00:34]} Nc6 {[%emt 0:00:44]} 11. Nxc6 {[%emt 0:01:17]} bxc6 {[%emt 0:00:25]} 12. Bd3 {[%emt 0:01:44]} Nc5 $146 {[%emt 0:00:49]} ({Vorgänger:} 12... Rb8 13. c3 Nc5 14. b4 Nxd3+ 15. Qxd3 c5 16. bxc5 Qxc5 {1-0 (61) Hoffmann,H (2236)-Nautsch,W (2270) Rheda Wiedenbrueck 2001}) 13. O-O {[%emt 0:01:21]} Nxd3 {[%emt 0:01:41]} 14. cxd3 {[%emt 0:00:04]} Bd7 {[%emt 0:01:55]} 15. b4 {[%emt 0:03:34]} c5 {[%emt 0:12:27]} 16. bxc5 {[%emt 0:01:15]} Qxc5 {[%emt 0:00:17]} 17. Rfc1 {[%emt 0:00:41]} Qa3 {[%emt 0:01:25]} 18. Rc7 {[%emt 0:04:37]} Rd8 {[%emt 0:04:11]} 19. Rb1 {[%emt 0:08:05]} O-O {[%emt 0:03:43]} 20. Rbb7 {[%emt 0:05:15]} Qa4 {[%emt 0:03:48]} 21. h3 {[%emt 0:02:49]} Bb5 {[%emt 0:05:21]} 22. d4 {[%emt 0:09:49]} Rc8 {[%emt 0:04:46]} 23. Rxc8 {[%emt 0:09:15]} Rxc8 {[%emt 0:05:22]} 24. Ng5 {[%emt 0:02:41]} Rf8 {[%emt 0:01:01]} 25. Qf4 {[%emt 0:08:13]} Be8 {[%emt 0:01:17]} 26. Qg4 {[%emt 0:01:16]} Bd7 {[%emt 0:03:57]} 27. Qh4 {[%emt 0:04:59]} (27. h4 $11 {hält das Gleichgewicht.}) 27... h6 {[%emt 0:01:17]} 28. Nf3 {[%emt 0:00:07]} Bb5 {[%emt 0:03:06]} 29. Qe7 {[%emt 0:05:14]} Qxa2 $19 {[%emt 0:02:23]} 30. Qc7 {[%emt 0:02:49]} *

[Event "22nd Alekhine FIDE 2018"]
[Site "Voronezh"]
[Date "2018.06.13"]
[Round "2"]
[White "Yakimenko, Alexander A."]
[Black "Levicheva, Ekaterina"]
[Result "*"]
[ECO "C13"]
[WhiteElo "2094"]
[BlackElo "1908"]
[Annotator "NA"]
[PlyCount "47"]
[EventDate "2018.??.??"]
[EventType "swiss"]
[EventCountry "RUS"]
[SourceTitle "playchess.com"]
[Source "ChessBase"]
[SourceQuality "1"]
[TimeControl "40/5400+30:1800+30"]

{[%evp 22,47,227,220,227,32767,106,129,147,137,125,122,114,32767,106,58,62,39,43,26,28,21,55,20,32767,8,22,0]} 1. e4 {[%emt 0:00:00]} e6 {[%emt 0:00:20]} 2. d4 {[%emt 0:00:00]} d5 {[%emt 0:00:09]} 3. Nc3 {[%emt 0:00:00]} Nf6 {[%emt 0:01:14]} 4. Bg5 {[%emt 0:00:11]} Be7 {[%emt 0:00:29]} 5. e5 {[%emt 0:00:14]} Nfd7 {[%emt 0:00:18]} 6. h4 {[%emt 0:01:23]} f6 {[%emt 0:09:32]} 7. exf6 {[%emt 0:00:35]} Nxf6 {[%emt 0:00:32] C14: French: Classical System: 4 Bg5 Be7 main line} 8. Bd3 {[%emt 0:07:21]} (8. Nf3 c5 9. Bb5+ Bd7 10. Qe2 O-O 11. Bxd7 Qxd7 12. O-O-O Nc6 13. Rhe1 cxd4 14. Nxd4 Nxd4 15. Rxd4 {0-1 (64) Harper,R (2293)-L'Ami,A (2415) Bridgetown 2014}) 8... Nbd7 {[%emt 0:04:31]} 9. Qe2 {[%emt 0:01:35]} Nf8 {[%emt 0:11:17]} 10. O-O-O $146 {[%emt 0:02:06]} ({Predecessor:} 10. Nf3 c6 11. Ne5 N8d7 12. Ng6 Rg8 13. Nxe7 Qxe7 14. Bxh7 Rh8 15. Bg6+ {1-0 (23) Korcz,D (1800)-Benkovsky,P (1677) Ruzomberok 2016}) 10... c6 {[%emt 0:01:35]} 11. Nf3 {[%emt 0:08:58]} Bd7 {[%emt 0:04:36]} 12. Ne5 {[%emt 0:04:37]} Rg8 {[%emt 0:07:52]} 13. Bxf6 {[%emt 0:02:40]} Bxf6 {[%emt 0:06:10]} 14. Bxh7 {[%emt 0:00:50]} Nxh7 {[%emt 0:02:34]} 15. Qh5+ {[%emt 0:01:07]} Ke7 {[%emt 0:00:30]} 16. Qxh7 {[%emt 0:01:28]} Bxe5 {[%emt 0:01:51]} 17. dxe5 {[%emt 0:00:48]} Qf8 {[%emt 0:01:32]} 18. Qh5 {[%emt 0:07:59]} ({Besser ist} 18. f3 $16) 18... Qf4+ {[%emt 0:05:02]} 19. Kb1 {[%emt 0:04:32]} Raf8 {[%emt 0:01:25]} 20. Rhf1 {[%emt 0:18:16]} Rh8 {[%emt 0:02:31]} 21. Qe2 {[%emt 0:01:02]} Qxh4 {[%emt 0:02:17]} 22. Qe3 {[%emt 0:01:06]} b6 {[%emt 0:01:54]} 23. g3 {[%emt 0:01:30]} Qh5 {[%emt 0:03:14]} 24. Ne2 $11 {[%emt 0:05:10]} *

[Event "22nd Alekhine FIDE 2018"]
[Site "Voronezh"]
[Date "2018.06.13"]
[Round "2"]
[White "Ioffe, Evgeny"]
[Black "Leolko, Ludmila"]
[Result "*"]
[ECO "B22"]
[WhiteElo "2079"]
[BlackElo "1901"]
[Annotator "NA"]
[PlyCount "58"]
[EventDate "2018.??.??"]
[EventType "swiss"]
[EventCountry "RUS"]
[SourceTitle "playchess.com"]
[Source "ChessBase"]
[SourceQuality "1"]
[TimeControl "40/5400+30:1800+30"]

{[%evp 22,58,62,32767,32767,32767,32767,32767,32767,32767,201,156,166,151,248,250,262,32767,32767,32767,32767,32767,32767,32767,230,237,239,229,225,258,251,292,262,293,406,32767,452,509,722]} 1. e4 {[%emt 0:00:00]} c5 {[%emt 0:00:05]} 2. c3 {[%emt 0:00:00]} d5 {[%emt 0:00:39]} 3. exd5 {[%emt 0:00:00]} Qxd5 {[%emt 0:00:22]} 4. d4 {[%emt 0:00:04]} Nc6 {[%emt 0:00:17]} 5. Nf3 {[%emt 0:00:13]} Bg4 {[%emt 0:00:19]} 6. dxc5 {[%emt 0:02:54]} Qxd1+ {[%emt 0:00:55]} 7. Kxd1 {[%emt 0:00:12]} e5 {[%emt 0:00:14] B22: Sicilian: 2 c3} 8. Be3 {[%emt 0:00:50]} (8. b4 a5 9. b5 Na7 10. Be3 Ne7 11. Kc2 f6 12. a4 Nd5 13. c6 Bf5+ 14. Kc1 Nxe3 15. cxb7 {0-1 (78) Zhigalko,S (2678)-Al Modiahki,M (2549) Dubai 2014}) 8... Nf6 {[%emt 0:02:01]} 9. Be2 {[%emt 0:08:40]} O-O-O+ {[%emt 0:03:55]} 10. Ke1 {[%emt 0:02:02]} Nd5 {[%emt 0:23:11]} 11. b4 {[%emt 0:02:29]} e4 $146 {[%emt 0:14:51]} ({Viel schlechter ist} 11... Nxe3 12. fxe3 Bxf3 13. Bxf3 $14) ({Lieber} 11... Be7 $11) ({Predecessor:} 11... f6 12. a3 Bf5 13. c4 Nxe3 14. fxe3 a5 15. Nh4 Be6 {½-½ (41) Orosi,P (2017)-Vrtiakova,A (1970) Slovakia 2015}) 12. Ng5 {[%emt 0:07:46]} Nxe3 {[%emt 0:01:55]} 13. fxe3 {[%emt 0:01:02]} Bxe2 {[%emt 0:01:03]} 14. Kxe2 {[%emt 0:00:37]} Rd7 {[%emt 0:00:46]} 15. Rf1 {[%emt 0:03:37]} Ne5 {[%emt 0:00:40]} 16. Nd2 {[%emt 0:01:31]} g6 {[%emt 0:01:54]} 17. Ndxe4 {[%emt 0:06:26]} ({Don't play} 17. Ngxe4 $6 f5 $14) 17... h6 {[%emt 0:04:00]} (17... f5 $142) 18. Nf3 {[%emt 0:01:06]} Nc4 {[%emt 0:00:36]} 19. Rad1 {[%emt 0:05:31]} Bg7 20. Rxd7 {[%emt 0:05:08]} Kxd7 {[%emt 0:01:02]} 21. Kd3 {[%emt 0:02:04]} Nb2+ {[%emt 0:02:07]} 22. Kc2 {[%emt 0:00:15]} Nc4 {[%emt 0:00:53]} 23. Rd1+ {[%emt 0:02:00]} Kc7 {[%emt 0:00:15]} 24. Rd3 {[%emt 0:01:30]} Re8 {[%emt 0:01:16]} 25. Nfd2 {[%emt 0:01:45]} Ne5 {[%emt 0:00:44]} 26. Nd6 {[%emt 0:05:04]} Rf8 {[%emt 0:06:05]} 27. Rd5 {[%emt 0:00:48]} Ng4 {[%emt 0:01:03]} 28. N2c4 {[%emt 0:02:07]} Kc6 {[%emt 0:06:09]} 29. e4 {[%emt 0:01:10]} Nxh2 $18 {[%emt 0:02:23]} (29... Nf6 $142 30. Re5 Ng8) *

[Event "22nd Alekhine FIDE 2018"]
[Site "Voronezh"]
[Date "2018.06.13"]
[Round "2"]
[White "Bobkov, Vadim"]
[Black "Pokhlebin, Sergej"]
[Result "*"]
[ECO "D31"]
[WhiteElo "2058"]
[BlackElo "1898"]
[Annotator "NA RC"]
[PlyCount "36"]
[EventDate "2018.??.??"]
[EventType "swiss"]
[EventCountry "RUS"]
[SourceTitle "playchess.com"]
[Source "ChessBase"]
[SourceQuality "1"]
[TimeControl "40/5400+30:1800+30"]

{[%evp 18,36,0,-27,32767,32767,32767,32767,13,14,12,-14,40,31,15,33,22,37,37,0,1]} 1. d4 d5 2. c4 e6 3. Nc3 Bb4 4. cxd5 {[%emt 0:03:47]} exd5 5. Bf4 Nf6 6. e3 O-O 7. Bd3 Re8 8. Nge2 Nh5 9. Bg3 g6 10. a3 Bf8 11. Nf4 Nxf4 12. Bxf4 c6 13. O-O a5 14. b4 axb4 15. axb4 Rxa1 16. Qxa1 Na6 17. Bxa6 bxa6 18. Rb1 Bf5 $11 *

[Event "22nd Alekhine FIDE 2018"]
[Site "Voronezh"]
[Date "2018.06.13"]
[Round "2"]
[White "Bitkinin, Lenar"]
[Black "Morgachev, Sergey"]
[Result "*"]
[ECO "A45"]
[WhiteElo "2055"]
[BlackElo "1889"]
[Annotator "NA RC"]
[PlyCount "23"]
[EventDate "2018.??.??"]
[EventType "swiss"]
[EventCountry "RUS"]
[SourceTitle "playchess.com"]
[Source "ChessBase"]
[SourceQuality "1"]
[TimeControl "40/5400+30:1800+30"]

{[%evp 14,23,35,32,23,32767,59,40,103,79,104,74]} 1. d4 {[%emt 0:00:00]} Nf6 {[%emt 0:00:18]} 2. Bg5 {[%emt 0:00:00]} Ne4 {[%emt 0:00:18]} 3. Bf4 {[%emt 0:00:00]} c5 {[%emt 0:01:15]} 4. d5 {[%emt 0:00:38]} e6 {[%emt 0:08:53]} 5. dxe6 {[%emt 0:05:35]} fxe6 {[%emt 0:01:46]} 6. e3 {[%emt 0:03:49]} Nf6 {[%emt 0:18:44]} 7. Nc3 {[%emt 0:09:09]} a6 {[%emt 0:07:25]} 8. g4 {[%emt 0:01:53]} d5 {[%emt 0:25:38]} 9. g5 {[%emt 0:02:47]} Ng8 {[%emt 0:02:46]} 10. Bd3 {[%emt 0:04:29]} Bd6 {[%emt 0:01:29]} (10... Ne7 $14) 11. Qh5+ {[%emt 0:01:29]} Kd7 {[%emt 0:01:32]} 12. O-O-O $16 {[%emt 0:11:20]} *

[Event "22nd Alekhine FIDE 2018"]
[Site "Voronezh"]
[Date "2018.06.13"]
[Round "2"]
[White "Shoshin, Kirill"]
[Black "Lebedev, Mikhail S."]
[Result "*"]
[ECO "E73"]
[WhiteElo "1938"]
[BlackElo "2103"]
[Annotator "NA"]
[PlyCount "40"]
[EventDate "2018.??.??"]
[EventType "swiss"]
[EventCountry "RUS"]
[SourceTitle "playchess.com"]
[Source "ChessBase"]
[SourceQuality "1"]
[TimeControl "40/5400+30:1800+30"]

{[%evp 18,40,29,-32,46,36,66,38,116,82,82,82,116,62,66,-50,-50,-50,-40,-87,-97,-167,-165,-558,-568]} 1. d4 {[%emt 0:00:00]} Nf6 {[%emt 0:00:50]} 2. c4 {[%emt 0:00:00]} g6 {[%emt 0:00:52]} 3. Nc3 {[%emt 0:00:00]} Bg7 {[%emt 0:00:32]} 4. e4 {[%emt 0:00:07]} d6 {[%emt 0:00:25]} 5. Be2 {[%emt 0:00:11]} O-O {[%emt 0:00:43]} 6. Bg5 {[%emt 0:00:09]} c5 {[%emt 0:01:05]} 7. dxc5 {[%emt 0:00:20]} Qa5 {[%emt 0:04:16]} 8. Bd2 {[%emt 0:00:11]} Qxc5 {[%emt 0:00:57]} 9. Nf3 {[%emt 0:00:34]} Be6 {[%emt 0:04:36]} 10. b3 {[%emt 0:19:54] LiveBook: 3 Games. E74: King's Indian: Averbakh Variation: 6...c5} (10. Qc2 $11) 10... a6 {[%emt 0:12:21]} ({Black should try} 10... Ng4 $15 11. O-O Bxc3 12. Bxc3 Ne3) (10... Re8 11. O-O h6 12. Rc1 Na6 13. Be3 Qc8 14. Nd4 Nc5 15. f3 Bd7 16. Qd2 Kh7 17. Nd5 b6 {1-0 (91) Blohberger,F (2355)-Ratsma,R (2295) Zadar 2017}) 11. O-O $14 {[%emt 0:02:35]} Nbd7 {[%emt 0:07:10]} 12. Rc1 {[%emt 0:03:13] White is slightly better.} Rfc8 {[%emt 0:12:24]} (12... Bg4 $14) 13. Be3 {[%emt 0:01:50]} Qa5 {[%emt 0:01:29]} 14. Nd4 {[%emt 0:10:17]} b5 {[%emt 0:07:46]} 15. Nxe6 $146 {[%emt 0:03:37]} ({Better is Predecessor:} 15. Nd5 $16 Bf8 (15... Bxd5 16. exd5 Qxa2 17. Ra1 {½-½ (31) Garcia Vicente,N (2245)-Batceceg,T (2195) Manila 1992}) 16. Nxf6+ (16. cxb5 Bxd5 17. exd5 Rxc1 $14) 16... Nxf6 17. cxb5 (17. Nxe6 fxe6 18. Bg4 Kf7 $16) 17... axb5 18. Bxb5 (18. Nxe6 fxe6 19. f3 Bg7 $14)) 15... fxe6 {[%emt 0:01:22]} 16. Bg4 {[%emt 0:23:40]} (16. Qe1 $14) 16... Nxg4 $15 {[%emt 0:10:47]} 17. Qxg4 {[%emt 0:00:16]} Nf8 {[%emt 0:00:28]} 18. Bd2 {[%emt 0:00:48]} bxc4 {[%emt 0:01:15]} 19. bxc4 {[%emt 0:07:17]} (19. Qf3 $17) 19... Rxc4 $19 {[%emt 0:02:21]} 20. Nd5 $2 {[%emt 0:01:28] [#]} (20. Qf3 {is a better chance.} Qa3 21. Ne2 Qxf3 22. gxf3) 20... Qxd5 $1 {[%emt 0:00:08] Precision: White = 19%, Black = 20%.} *